fUSD/lending_fUSD_20251112
["ID","MTS","AMOUNT","RATE_DAILY","PERIOD"]
[393739388,1762958871862,-170.0,0.00044209,120]
[393739389,1762958871924,-170.0,0.00044209,120]
[393739390,1762958871983,-170.0,0.00044209,120]
[393739391,1762958872048,-170.0,0.00044209,120]
[393739392,1762958872113,-170.0,0.00044209,120]
[393739393,1762958872171,-158.37270692,0.0004425,120]
[393739394,1762958872230,-206.3313054,0.00044275,120]
[393739395,1762958872290,-1014.0,0.0004455,30]
[393739396,1762958872351,-153.0,0.000447,120]
[393739397,1762958872411,-1130.61429757,0.000449,30]
[393739398,1762958872468,-255.27,0.00045,120]
[393739399,1762958872526,-255.37,0.00045,120]
[393739400,1762958872590,-1000000.0,0.00045,120]
[393739401,1762958872655,-854108.49311549,0.00045,120]
[393739402,1762958878909,250.0,0.00017,2]
[393739403,1762958885688,-500.0,0.00038234,30]
[393739404,1762958885752,-254.00577411,0.00039178,20]
[393739405,1762958885818,-500.0,0.00039178,20]
[393739406,1762958885880,-500.0,0.00039178,20]
[393739407,1762958885938,-500.0,0.00039178,20]
[393739408,1762958885997,-500.0,0.00039178,20]
[393739409,1762958886057,-500.0,0.00039178,20]
[393739410,1762958886116,-500.0,0.00039178,20]
[393739411,1762958886174,-500.0,0.00039178,20]
[393739412,1762958886232,-500.0,0.00039178,20]
[393739413,1762958886290,-500.0,0.00039178,20]
[393739414,1762958886349,-500.0,0.00039178,20]
[393739415,1762958886413,-243.11842268,0.00039178,20]
[393739416,1762958886486,-268.23783738,0.00039178,20]
[393739417,1762958886568,-500.0,0.00039178,20]
[393739418,1762958886629,-500.0,0.00039178,20]
[393739419,1762958886687,-500.0,0.00039178,20]
[393739420,1762958886744,-508.51267122,0.00039178,20]
[393739421,1762958886803,-226.28376294,0.00039178,20]
[393739422,1762958886861,-476.11120023,0.00039178,20]
[393739423,1762958886921,-463.38598824,0.00039178,20]
[393739424,1762958886983,-500.0,0.00039178,20]
[393739425,1762958887041,-500.0,0.00039178,20]
[393739426,1762958887100,-500.0,0.00039178,20]
[393739427,1762958887169,-500.0,0.00039178,20]
[393739428,1762958887236,-500.0,0.00039178,20]
[393739429,1762958887296,-500.0,0.00039178,20]
[393739430,1762958887353,-500.0,0.00039178,20]
[393739431,1762958887411,-500.0,0.00039178,20]
[393739432,1762958887470,-422.01624957,0.00039178,20]
[393739433,1762958887528,-373.30798458,0.00039178,20]
[393739434,1762958887586,-250.72656962,0.00039178,20]
[393739435,1762958887643,-537.54158613,0.00039178,20]
[393739436,1762958887704,-513.87827695,0.00039178,20]
[393739437,1762958887763,-396.06211683,0.00039178,20]
[393739438,1762958887819,-500.0,0.00039178,20]
[393739439,1762958887877,-164.24173502,0.00039178,20]
[393739440,1762958887933,-500.0,0.00039178,20]
[393739441,1762958887989,-500.0,0.00039178,20]
[393739442,1762958888044,-500.0,0.00039178,20]
[393739443,1762958888098,-500.0,0.00039178,20]
[393739444,1762958888152,-500.0,0.00039178,20]
[393739445,1762958888217,-500.0,0.00039178,20]
[393739446,1762958888276,-500.0,0.00039178,20]
[393739447,1762958888334,-630.87859523,0.00039178,20]
[393739448,1762958888390,-500.0,0.00039178,20]
[393739449,1762958888455,-500.0,0.00039178,20]
[393739450,1762958888530,-500.0,0.00039178,20]
[393739451,1762958888606,-500.0,0.00039178,20]
[393739452,1762958888676,-500.0,0.00039178,20]
[393739453,1762958888741,-380.60238026,0.00039178,20]
[393739454,1762958888804,-477.01705635,0.00039178,20]
[393739455,1762958888869,-500.0,0.00039178,20]
[393739456,1762958888932,-500.0,0.00039178,20]
[393739457,1762958888988,-500.0,0.00039178,20]
[393739458,1762958889044,-500.0,0.00039178,20]
[393739459,1762958889104,-500.0,0.00039178,20]
[393739460,1762958889167,-500.0,0.00039178,20]
[393739461,1762958889239,-500.0,0.00039178,20]
[393739462,1762958889301,-500.0,0.00039178,20]
[393739463,1762958889361,-213.44159602,0.00039178,20]
[393739464,1762958889425,-500.0,0.00039178,20]
[393739465,1762958889489,-633.44725734,0.00039178,20]
[393739466,1762958889552,-500.0,0.00039178,20]
[393739467,1762958889617,-370.27910155,0.00039178,20]
[393739468,1762958889676,-500.0,0.00039178,20]
[393739469,1762958889742,-500.0,0.00039178,20]
[393739470,1762958889801,-601.28641066,0.00039178,20]
[393739471,1762958889860,-537.75445747,0.00039178,20]
[393739472,1762958889920,-568.18331011,0.00039178,20]
[393739473,1762958889980,-500.0,0.00039178,20]
[393739474,1762958890041,-500.0,0.00039178,20]
[393739475,1762958890099,-500.0,0.00039178,20]
[393739476,1762958890156,-500.0,0.00039178,20]
[393739477,1762958890217,-296.29998565,0.00039178,20]
[393739478,1762958890288,-500.0,0.00039178,20]
[393739479,1762958890346,-500.0,0.00039178,20]
[393739480,1762958890410,-500.0,0.00039178,20]
[393739481,1762958890475,-500.0,0.00039178,20]
[393739482,1762958890532,-500.0,0.00039178,20]
[393739483,1762958890592,-500.0,0.00039178,20]
[393739484,1762958890654,-500.0,0.00039178,20]
[393739485,1762958890718,-500.0,0.00039178,20]
[393739486,1762958890783,-500.0,0.00039178,20]
[393739487,1762958890846,-315.73930794,0.00039178,20]
[393739488,1762958890905,-500.0,0.00039178,20]
[393739489,1762958890964,-500.0,0.00039178,20]
[393739490,1762958891025,-500.0,0.00039178,20]
[393739491,1762958891086,-500.0,0.00039178,20]
[393739492,1762958891147,-500.0,0.00039178,20]
[393739493,1762958891218,-500.0,0.00039178,20]
[393739494,1762958891287,-570.79896627,0.00039178,20]
[393739495,1762958891536,-500.0,0.00039178,20]
[393739496,1762958891610,-500.0,0.00039178,20]
[393739497,1762958891690,-500.0,0.00039178,20]
[393739498,1762958891766,-399.18405703,0.00039178,20]
[393739499,1762958891841,-500.0,0.00039178,20]
[393739500,1762958891908,-500.0,0.00039178,20]
[393739501,1762958891980,-500.0,0.00039178,20]
[393739502,1762958892044,-500.0,0.00039178,20]
[393739503,1762958892112,-500.0,0.00039178,20]
[393739504,1762958892180,-596.4117739,0.00039178,20]
[393739505,1762958892243,-500.0,0.00039178,20]
[393739506,1762958892308,-289.85514899,0.00039178,20]
[393739507,1762958892371,-500.0,0.00039178,20]
[393739508,1762958892435,-500.0,0.00039178,20]
[393739509,1762958892501,-439.3815612,0.00039178,20]
[393739510,1762958892570,-586.45488064,0.00039178,20]
[393739511,1762958892638,-500.0,0.00039178,20]
[393739512,1762958892701,-500.0,0.00039178,20]
[393739513,1762958892766,-500.0,0.00039178,20]
[393739514,1762958892832,-500.0,0.00039178,20]
[393739515,1762958892895,-500.0,0.00039178,20]
[393739516,1762958892955,-203.5190816,0.00039178,20]
[393739517,1762958893014,-500.0,0.00039178,20]
[393739518,1762958893075,-500.0,0.00039178,20]
[393739519,1762958893138,-500.0,0.00039178,20]
[393739520,1762958893204,-500.0,0.00039178,20]
[393739521,1762958893266,-500.0,0.00039178,20]
[393739522,1762958893334,-500.0,0.00039178,20]
[393739523,1762958893395,-500.0,0.00039178,20]
[393739524,1762958893457,-500.0,0.00039178,20]
[393739525,1762958893513,-169.53798117,0.00039178,20]
[393739526,1762958893575,-500.0,0.00039178,20]
[393739527,1762958893637,-500.0,0.00039178,20]
[393739528,1762958893701,-500.0,0.00039178,20]
[393739529,1762958893765,-500.0,0.00039178,20]
[393739530,1762958893829,-500.0,0.00039178,20]
[393739531,1762958893889,-500.0,0.00039178,20]
[393739532,1762958893948,-172.62900837,0.00039178,20]
[393739533,1762958894006,-500.0,0.00039178,20]
[393739534,1762958894063,-500.0,0.00039178,20]
[393739535,1762958894120,-500.0,0.00039178,20]
[393739536,1762958894184,-500.0,0.00039178,20]
[393739537,1762958894254,-500.0,0.00039178,20]
[393739538,1762958894320,-500.0,0.00039178,20]
[393739539,1762958894387,-308.43517065,0.00039178,20]
[393739540,1762958894451,-500.0,0.00039178,20]
[393739541,1762958894522,-577.56671914,0.00039178,20]
[393739542,1762958894591,-172.68845389,0.00039178,20]
[393739543,1762958894658,-517.45204041,0.00039178,20]
[393739544,1762958894724,-500.0,0.00039178,20]
[393739545,1762958894795,-477.08289395,0.00039178,20]
[393739546,1762958894862,-500.0,0.00039178,20]
[393739547,1762958894930,-395.93075991,0.00039178,20]
[393739548,1762958894994,-500.0,0.00039178,20]
[393739549,1762958895058,-500.0,0.00039178,20]
[393739550,1762958895125,-500.0,0.00039178,20]
[393739551,1762958895188,-500.0,0.00039178,20]
[393739552,1762958895257,-500.0,0.00039178,20]
[393739553,1762958895322,-500.0,0.00039178,20]
[393739554,1762958895389,-500.0,0.00039178,20]
[393739555,1762958895454,-500.0,0.00039178,20]
[393739556,1762958895519,-419.85548365,0.00039178,20]
[393739557,1762958895588,-500.0,0.00039178,20]
[393739558,1762958895669,-500.0,0.00039178,20]
[393739559,1762958895746,-500.0,0.00039178,20]
[393739560,1762958895814,-500.0,0.00039178,20]
[393739561,1762958895882,-500.0,0.00039178,20]
[393739562,1762958895953,-500.0,0.00039178,20]
[393739563,1762958896015,-500.0,0.00039178,20]
[393739564,1762958896073,-500.0,0.00039178,20]
[393739565,1762958896134,-500.0,0.00039178,20]
[393739566,1762958896203,-500.0,0.00039178,20]
[393739567,1762958896269,-500.0,0.00039178,20]
[393739568,1762958896333,-500.0,0.00039178,20]
[393739569,1762958896392,-500.0,0.00039178,20]
[393739570,1762958896462,-500.0,0.00039178,20]
[393739571,1762958896532,-500.0,0.00039178,20]
[393739572,1762958896602,-500.0,0.00039178,20]
[393739573,1762958896670,-500.0,0.00039178,20]
[393739574,1762958896740,-224.81665308,0.00039178,20]
[393739575,1762958896799,-530.6603188,0.00039178,20]
[393739576,1762958896855,-625.87360418,0.00039178,20]
[393739577,1762958896918,-500.0,0.00039178,20]
[393739578,1762958896982,-447.60999144,0.00039178,20]
[393739579,1762958897040,-285.83696218,0.00039178,20]
[393739580,1762958897099,-500.0,0.00039178,20]
[393739581,1762958897155,-500.0,0.00039178,20]
[393739582,1762958897215,-500.0,0.00039178,20]
[393739583,1762958897274,-500.0,0.00039178,20]
[393739584,1762958897335,-500.0,0.00039178,20]
[393739585,1762958897393,-500.0,0.00039178,20]
[393739586,1762958897453,-534.02750838,0.00039178,20]
[393739587,1762958897513,-500.0,0.00039178,20]
[393739588,1762958897575,-293.57921472,0.00039178,20]
[393739589,1762958897638,-500.0,0.00039178,20]
[393739590,1762958897704,-500.0,0.00039178,20]
[393739591,1762958897770,-500.0,0.00039179,20]
[393739592,1762958897832,-500.0,0.00039179,20]
[393739593,1762958897894,-500.0,0.00039179,20]
[393739594,1762958897959,-500.0,0.00039179,20]
[393739595,1762958898022,-500.0,0.00039179,20]
[393739596,1762958898084,-500.0,0.00039179,20]
[393739597,1762958898148,-162.66026467,0.00039344,20]
[393739598,1762958898213,-228.1238371,0.00039975,15]
[393739599,1762958898273,-266.8815647,0.00039998,20]
[393739600,1762958898456,-228.1238371,0.00040068,15]
[393739601,1762958898516,-228.1238371,0.00040162,15]
[393739602,1762958898578,-500.0,0.00040244,15]
[393739603,1762958898639,-500.0,0.00040244,15]
[393739604,1762958898697,-500.0,0.00040244,15]
[393739605,1762958898757,-500.0,0.00040244,15]
[393739606,1762958898817,-500.0,0.00040244,15]
[393739607,1762958898873,-500.0,0.00040244,15]
[393739608,1762958898932,-500.0,0.00040244,15]
[393739609,1762958898991,-500.0,0.00040244,15]
[393739610,1762958899051,-500.0,0.00040244,20]
[393739611,1762958899111,-500.0,0.00040244,20]
[393739612,1762958899170,-500.0,0.00040244,20]
[393739613,1762958899233,-500.0,0.00040244,20]
[393739614,1762958899293,-521.79510611,0.00040244,20]
[393739615,1762958899352,-500.0,0.00040244,20]
[393739616,1762958899412,-151.0,0.00040244,28]
[393739617,1762958899473,-221.64104492,0.00040244,28]
[393739618,1762958899530,-161.88624356,0.00040245,14]
[393739619,1762958899587,-228.1238371,0.00040255,15]
[393739620,1762958899647,-500.0,0.00040344,20]
[393739621,1762958899707,-500.0,0.00040344,20]
[393739622,1762958899767,-500.0,0.00040344,20]
[393739623,1762958899826,-348.21596673,0.00040354,15]
[393739624,1762958899886,-2804.65344044,0.00040355,29]
[393739625,1762958899958,-185.84471793,0.00040356,14]
[393739626,1762958900020,-12828.9,0.000404,14]
[393739627,1762958900083,-884.2,0.000404,14]
[393739628,1762958900141,-199.0,0.00040711,10]
[393739629,1762958900197,-150.0,0.00041,20]
[393739630,1762958900253,-2006.00998803,0.00041,120]
[393739631,1762958900307,-1038.28,0.00041095,120]
[393739632,1762958900361,-1038.28,0.00041095,120]
[393739633,1762958900415,-1038.28,0.00041095,120]
[393739634,1762958900469,-1038.28,0.00041095,120]
[393739635,1762958900526,-1038.28,0.00041095,120]
[393739636,1762958900586,-1038.28,0.00041095,120]
[393739637,1762958900649,-1038.28,0.00041095,120]
[393739638,1762958900708,-1038.28,0.00041095,120]
[393739639,1762958900764,-1038.28,0.00041095,120]
[393739640,1762958900822,-1038.35634515,0.00041095,120]
[393739641,1762958900878,-1000.0,0.00041096,15]
[393739642,1762958900935,-1000.0,0.00041096,15]
[393739643,1762958900990,-1000.0,0.00041096,15]
[393739644,1762958901048,-1000.0,0.00041096,15]
[393739645,1762958901106,-1000.0,0.00041096,15]
[393739646,1762958901162,-1000.0,0.00041096,15]
[393739647,1762958901220,-1000.0,0.00041096,15]
[393739648,1762958901277,-1000.0,0.00041096,15]
[393739649,1762958901330,-949.0,0.00041096,15]
[393739650,1762958901383,-199.0,0.00041259,11]
[393739651,1762958901440,-563.90910635,0.00041402,10]
[393739652,1762958901497,-12828.9,0.000416,14]
[393739653,1762958901554,-884.2,0.000416,14]
[393739654,1762958901614,-199.0,0.00041807,12]
[393739655,1762958901670,-150.0,0.00042,20]
[393739656,1762958901730,-199.0,0.00042355,13]
[393739657,1762958901784,-12828.9,0.000428,14]
[393739658,1762958901842,-884.2,0.000428,14]
[393739659,1762958901901,-199.0,0.00042903,14]
[393739660,1762958901965,-150.0,0.00043,20]
[393739661,1762958902028,-199.0,0.00043451,15]
[393739662,1762958902088,-12828.9,0.000439,14]
[393739663,1762958902146,-884.2,0.000439,14]
[393739664,1762958902206,-199.0,0.00043999,16]
[393739665,1762958902267,-150.0,0.00044,20]
[393739666,1762958902324,-151.16713156,0.00044088,10]
[393739667,1762958902383,-162.66026467,0.00044262,20]
[393739668,1762958902439,-400.0,0.000444,15]
[393739669,1762958902493,-199.0,0.00044547,17]
[393739670,1762958902560,-1000.0,0.00044671,21]
[393739671,1762958902630,-606.68313833,0.00045,10]
[393739672,1762958902702,-145891.50688451,0.00045,120]
[393739673,1762958902771,-666743.16557631,0.00045,120]
[393739675,1762958962489,300.0,0.00040355,30]
[393739685,1762959031418,-282.26177474,0.00035174,2]
[393739686,1762959031429,-194.52972288,0.00036029,2]
[393739687,1762959031438,-58.57050238,0.0003613,2]
[393739688,1762959031449,-933.18302333,0.0003613,2]
[393739689,1762959031547,-908.31160856,0.0003613,2]
[393739690,1762959031559,-2646.0370345,0.0003613,2]
[393739691,1762959036900,-636.23193123,0.0003613,2]
[393739692,1762959036910,-1600.0,0.00036361,3]
[393739693,1762959036920,-300.0,0.00036361,3]
[393739694,1762959036930,-400.0,0.00036361,2]
[393739695,1762959036939,-150.99,0.00036362,2]
[393739696,1762959036948,-562.25,0.00036362,2]
[393739697,1762959036958,-722.85,0.00036362,2]
[393739698,1762959036969,-440.96,0.00036362,2]
[393739699,1762959036978,-1125.42964192,0.00036363,2]
[393739700,1762959036989,-3414.6004869,0.00036363,2]
[393739701,1762959036999,-168.0,0.00037184,2]
[393739702,1762959037010,-189.38521949,0.000372,120]
[393739703,1762959037019,-5000.0,0.00037695,2]
[393739704,1762959037032,-214.08,0.00037739,2]
[393739705,1762959037042,-173.14,0.00037782,2]
[393739706,1762959037051,-181.31,0.00037784,120]
[393739707,1762959037061,-156.49,0.00037854,120]
[393739708,1762959037071,-250.0,0.00037921,2]
[393739710,1762959037080,-199.0,0.00037996,7]
[393739712,1762959037091,-478.56668374,0.00038254,2]
[393739714,1762959037101,-1211.5,0.000383,2]
[393739716,1762959037111,-199.0,0.00038544,8]
[393739718,1762959037123,-250.0,0.00038662,2]
[393739720,1762959037132,-15523.72686005,0.00038678,5]
[393739722,1762959037142,-200.0,0.00038752,2]
[393739724,1762959037152,-560.0,0.00038932,5]
[393739726,1762959037161,-342.0,0.00038995,4]
[393739728,1762959037171,-608.0,0.00038996,2]
[393739730,1762959037180,-1274.0,0.00038996,2]
[393739732,1762959037190,-2143.0,0.00038996,2]
[393739733,1762959037199,-6482.0,0.00038996,2]
[393739734,1762959037210,-6593.20563165,0.00039078,2]
[393739736,1762959037219,-9889.18284945,0.00039078,2]
[393739755,1762959037374,-7542.88435055,0.00039078,2]
[393739757,1762959037383,-1556.0711,0.00039078,2]
[393739759,1762959037393,-1280.0,0.00039083,5]
[393739761,1762959037402,-199.0,0.00039092,9]
[393739763,1762959037412,-500.0,0.00039178,7]
[393739765,1762959037422,-500.0,0.00039178,7]
[393739767,1762959037432,-500.0,0.00039178,7]
[393739769,1762959037442,-500.0,0.00039178,7]
[393739771,1762959037451,-500.0,0.00039178,7]
[393739773,1762959037461,-500.0,0.00039178,7]
[393739774,1762959037470,-313.36531007,0.00039178,2]
[393739775,1762959037480,-500.0,0.00039178,2]
[393739776,1762959037489,-500.0,0.00039178,2]
[393739777,1762959037499,-500.0,0.00039178,2]
[393739778,1762959037508,-500.0,0.00039178,2]
[393739779,1762959037517,-500.0,0.00039178,2]
[393739780,1762959037528,-500.0,0.00039178,2]
[393739781,1762959037537,-500.0,0.00039178,2]
[393739782,1762959037546,-500.0,0.00039178,2]
[393739783,1762959037556,-500.0,0.00039178,2]
[393739784,1762959037565,-500.0,0.00039178,20]
[393739785,1762959037575,-500.0,0.00039178,20]
[393739786,1762959037585,-500.0,0.00039178,20]
[393739787,1762959037595,-500.0,0.00039178,20]
[393739788,1762959037609,-500.0,0.00039178,20]
[393739789,1762959037619,-231.01675891,0.00039178,20]
[393739790,1762959037629,-500.0,0.00039178,20]
[393739791,1762959037638,-500.0,0.00039178,20]
[393739792,1762959037650,-500.0,0.00039178,20]
[393739793,1762959037659,-459.85014282,0.00039178,20]
[393739794,1762959037669,-500.0,0.00039178,20]
[393739795,1762959037681,-534.7852418,0.00039178,20]
[393739796,1762959037691,-500.0,0.00039178,20]
[393739797,1762959037701,-632.45125664,0.00039178,20]
[393739798,1762959037710,-271.67818199,0.00039178,20]
[393739799,1762959037722,-228.32181801,0.00039178,20]
[393739800,1762959037732,-500.0,0.00039178,20]
[393739801,1762959037742,-155.93318199,0.00039178,20]
[393739802,1762959037754,-49.7081706,0.00039178,20]
[393739803,1762959037764,-500.0,0.00039178,20]
[393739804,1762959037773,-500.0,0.00039178,20]
[393739805,1762959037787,-500.0,0.00039178,20]
[393739806,1762959037796,-500.0,0.00039178,20]
[393739807,1762959037809,-500.0,0.00039178,20]
[393739808,1762959037820,-500.0,0.00039178,20]
[393739809,1762959037830,-500.0,0.00039178,20]
[393739810,1762959037840,-500.0,0.00039178,20]
[393739811,1762959037849,-500.0,0.00039178,20]
[393739812,1762959037858,-500.0,0.00039178,20]
[393739813,1762959037868,-317.86723819,0.00039178,20]
[393739814,1762959037878,-500.0,0.00039178,20]
[393739815,1762959037887,-381.08476359,0.00039178,20]
[393739816,1762959037897,-538.31110291,0.00039178,20]
[393739817,1762959037907,-285.5076421,0.00039178,2]
[393739818,1762959037916,-500.0,0.00039179,20]
[393739819,1762959037925,-999.0,0.00039194,3]
[393739820,1762959037935,-1089.0,0.000392,2]
[393739821,1762959037945,-6593.20563161,0.00039209,2]
[393739822,1762959037956,-162.66026468,0.00039306,20]
[393739823,1762959037967,-6593.20563161,0.0003934,2]
[393739824,1762959037977,-589.6657,0.000394,2]
[393739825,1762959037988,-6593.20563161,0.0003947,2]
[393739826,1762959037999,-178.38352887,0.0003947,2]
[393739827,1762959038009,-1552.94815776,0.0003949,4]
[393739828,1762959038021,-57594.9013937,0.000395,2]
[393739829,1762959038039,-34049.7991704,0.000395,2]
[393739830,1762959038052,-2290.94,0.000395,2]
[393739831,1762959038065,-1055.95684857,0.000395,2]
[393739832,1762959038082,-1370.716068,0.000395,2]
[393739833,1762959038094,-3126.6,0.000395,2]
[393739834,1762959038107,-268.2056333,0.000395,2]
[393739836,1762959039624,-1353.69104679,0.00038216,20]
[393739837,1762959039635,-500.0,0.00039178,20]
[393739838,1762959039646,-500.0,0.00039178,20]
[393739839,1762959039657,-500.0,0.00039178,20]
[393739840,1762959039667,-500.0,0.00039178,20]
[393739841,1762959039677,-500.0,0.00039178,20]
[393739842,1762959039690,-500.0,0.00039178,20]
[393739843,1762959039701,-16415.05695321,0.000395,2]
[393739860,1762959042610,-23216.68652641,0.00033,2]
[393739861,1762959042622,-590.09658189,0.00039178,20]
[393739862,1762959042631,-161.17014639,0.00039178,20]
[393739863,1762959042641,-611.11332087,0.00039178,20]
[393739864,1762959042651,-500.0,0.00039178,20]
[393739865,1762959042662,-280.03447343,0.00039178,20]
[393739866,1762959042671,-500.0,0.00039178,20]
[393739867,1762959042681,-500.0,0.00039178,20]
[393739868,1762959042692,-500.0,0.00039178,20]
[393739869,1762959042702,-500.0,0.00039178,20]
[393739870,1762959042711,-437.18417214,0.00039178,20]
[393739871,1762959042721,-500.0,0.00039178,20]
[393739872,1762959042731,-500.0,0.00039178,20]
[393739873,1762959042741,-500.0,0.00039178,20]
[393739874,1762959042751,-500.0,0.00039178,20]
[393739875,1762959042761,-500.0,0.00039178,20]
[393739876,1762959042771,-97576.98988845,0.000395,2]
[393739877,1762959042783,-6593.20563161,0.00039601,2]
[393739878,1762959042794,-199.0,0.0003964,10]
[393739879,1762959042804,-150.0,0.00039692,7]
[393739880,1762959042814,-150.0,0.00039711,7]
[393739881,1762959042826,-6593.20563161,0.00039732,2]
[393739882,1762959042836,-6593.20563161,0.00039863,15]
[393739883,1762959042845,-417.89634,0.0003994,2]
[393739884,1762959042855,-6593.20563161,0.00039993,15]
[393739885,1762959042865,-500.0,0.00039998,2]
[393739886,1762959042875,-1010.0,0.000401,7]
[393739887,1762959042884,-6593.20563161,0.00040124,15]
[393739888,1762959042894,-500.0,0.00040134,2]
[393739889,1762959042903,-417.89635,0.0004014,3]
[393739890,1762959042913,-152.08255807,0.00040145,15]
[393739891,1762959042922,-152.08255807,0.00040159,15]
[393739892,1762959042931,-1000.0,0.0004016,7]
[393739893,1762959042941,-152.08255807,0.00040173,15]
[393739894,1762959042950,-152.08255807,0.00040186,15]
[393739895,1762959042960,-199.0,0.00040188,11]
[393739896,1762959042970,-152.08255807,0.000402,15]
[393739897,1762959042979,-152.08255807,0.00040214,15]
[393739898,1762959042989,-152.08255807,0.00040228,15]
[393739899,1762959042998,-776.47407888,0.00040235,4]
[393739900,1762959043008,-152.08255807,0.00040241,15]
[393739901,1762959043018,-500.0,0.00040244,20]
[393739902,1762959043028,-8991.27499718,0.00040245,2]
[393739906,1762959045521,-920.00000001,0.00038216,20]
[393739907,1762959045534,-118.19295344,0.00038216,20]
[393739908,1762959045544,-562.34543848,0.00039178,20]
[393739909,1762959045553,-500.0,0.00039178,20]
[393739910,1762959045563,-530.05485785,0.00039178,20]
[393739911,1762959045573,-529.08081235,0.00039178,20]
[393739912,1762959045582,-500.0,0.00039178,20]
[393739913,1762959045591,-500.0,0.00039178,20]
[393739914,1762959045602,-500.0,0.00039178,20]
[393739915,1762959045612,-500.0,0.00039178,20]
[393739916,1762959045623,-622.315854,0.00039178,20]
[393739917,1762959045633,-500.0,0.00039178,20]
[393739918,1762959045642,-146.75921056,0.00039178,2]
[393739919,1762959045753,-353.24078944,0.00039178,2]
[393739920,1762959045763,-227.5630007,0.00039178,20]
[393739921,1762959045773,-500.0,0.00039178,2]
[393739922,1762959045786,-500.0,0.00039178,2]
[393739923,1762959045796,-500.0,0.00039179,20]
[393739924,1762959045806,-500.0,0.00040244,20]
[393739925,1762959045816,-24304.07760282,0.00040245,2]
[393739926,1762959045826,-1000.0,0.00040245,2]
[393739927,1762959045836,-5000.0,0.00040255,120]
[393739928,1762959045846,-6593.20563161,0.00040255,15]
[393739929,1762959045855,-152.08255807,0.00040255,15]
[393739930,1762959045865,-189.38521949,0.00040255,120]
[393739931,1762959045875,-500.0,0.00040299,15]
[393739932,1762959045884,-500.0,0.00040299,15]
[393739933,1762959045894,-500.0,0.00040299,15]
[393739934,1762959045903,-500.0,0.00040299,15]
[393739935,1762959045913,-500.0,0.00040299,15]
[393739936,1762959045923,-500.0,0.00040299,15]
[393739937,1762959045933,-500.0,0.00040299,15]
[393739938,1762959045942,-500.0,0.00040299,15]
[393739939,1762959045951,-167.52,0.000403,60]
[393739940,1762959045960,-388.23703944,0.00040335,4]
[393739941,1762959045970,-417.89634,0.00040344,4]
[393739942,1762959045980,-500.0,0.00040344,20]
[393739943,1762959045989,-500.0,0.00040344,20]
[393739944,1762959045999,-3397.9742858,0.00040345,2]
[393739945,1762959046010,-12590.8719663,0.00040345,2]
[393739946,1762959046019,-1660.7652522,0.00040345,2]
[393739947,1762959046029,-1000.0,0.00040345,30]
[393739948,1762959046046,-1000.0,0.00040345,30]
[393739949,1762959046056,-433.74,0.00040346,2]
[393739950,1762959046067,-236.34981316,0.00040354,7]
[393739951,1762959046077,-1547.0,0.00040355,5]
[393739952,1762959046087,-1402.32672023,0.00040355,29]
[393739953,1762959046098,-34692.46437301,0.00040355,7]
[393739954,1762959046114,-150.0,0.00040245,30]
[393739955,1762959046124,-3474.2010548,0.00040355,7]
[393739956,1762959046140,-176000.0,0.00040355,7]
[393739957,1762959046156,-7061.865,0.00040355,7]